[Event "December 5 Early 2023"]
[Site "https://www.chess.com"]
[Date "2023.12.05"]
[Round "6"]
[White "Kolmagorov, Alexey"]
[Black "Eugene, Floryan"]
[Result "1/2-1/2"]
[Board "142"]
[TimeControl "180+1"]
[WhiteFideId "34129402"]
[BlackFideId "20694784"]
[WhiteElo "2368"]
[BlackElo "2517"]
[WhiteTeam "RUS"]
[BlackTeam "FRA"]
[WhiteClock "0:00:03"]
[BlackClock "0:00:05"]

1. d4 {[%clk 0:03:00]}  f5 {[%clk 0:02:59]} 2. g3 {[%clk 0:03:00]}  Nf6 {[%clk 0:03:00]} 3. Bg2 {[%clk 0:03:01]}  g6 {[%clk 0:03:00]} 4. Nf3 {[%clk 0:03:02]}  Bg7 {[%clk 0:03:01]} 5. O-O {[%clk 0:03:02]}  O-O {[%clk 0:03:02]} 6. b3 {[%clk 0:03:03]}  d6 {[%clk 0:03:01]} 7. Bb2 {[%clk 0:03:04]}  Qe8 {[%clk 0:02:58]} 8. Nbd2 {[%clk 0:03:04]}  Nc6 {[%clk 0:02:56]} 9. Re1 {[%clk 0:02:46]}  e5 {[%clk 0:02:56]} 10. dxe5 {[%clk 0:02:30]}  dxe5 {[%clk 0:02:53]} 11. e4 {[%clk 0:02:25]}  fxe4 {[%clk 0:02:39]} 12. Nxe4 {[%clk 0:02:20]}  Nxe4 {[%clk 0:02:17]} 13. Rxe4 {[%clk 0:02:21]}  Bf5 {[%clk 0:02:17]} 14. Qd5+ {[%clk 0:01:52]}  Kh8 {[%clk 0:02:15]} 15. Ree1 {[%clk 0:01:46]}  Rd8 {[%clk 0:02:12]} 16. Qb5 {[%clk 0:01:47]}  e4 {[%clk 0:01:52]} 17. Bxg7+ {[%clk 0:01:45]}  Kxg7 {[%clk 0:01:52]} 18. Ng5 {[%clk 0:01:42]}  Nd4 {[%clk 0:01:40]} 19. Qxb7 {[%clk 0:01:40]}  Qe7 {[%clk 0:01:36]} 20. Nxe4 {[%clk 0:00:55]}  Nxc2 {[%clk 0:01:35]} 21. Rac1 {[%clk 0:00:33]}  Nxe1 {[%clk 0:01:32]} 22. Rxe1 {[%clk 0:00:26]}  Bxe4 {[%clk 0:01:17]} 23. Rxe4 {[%clk 0:00:18]}  Rd1+ {[%clk 0:01:15]} 24. Bf1 {[%clk 0:00:19]}  Qc5 {[%clk 0:01:14]} 25. Re2 {[%clk 0:00:11]}  Qc1 {[%clk 0:01:13]} 26. Re7+ {[%clk 0:00:08]}  Rf7 {[%clk 0:01:07]} 27. Rxf7+ {[%clk 0:00:06]}  Kxf7 {[%clk 0:01:08]} 28. Qf3+ {[%clk 0:00:07]}  Kg7 {[%clk 0:00:37]} 29. Qe2 {[%clk 0:00:07]}  Re1 {[%clk 0:00:35]} 30. Qd3 {[%clk 0:00:07]}  Qc5 {[%clk 0:00:31]} 31. Qd7+ {[%clk 0:00:05]}  Re7 {[%clk 0:00:28]} 32. Qd2 {[%clk 0:00:04]}  a5 {[%clk 0:00:25]} 33. Bc4 {[%clk 0:00:04]}  Qe5 {[%clk 0:00:23]} 34. Kg2 {[%clk 0:00:03]}  Qe4+ {[%clk 0:00:23]} 35. Kh3 {[%clk 0:00:02]}  Qf5+ {[%clk 0:00:18]} 36. Kg2 {[%clk 0:00:03]}  Rd7 {[%clk 0:00:18]} 37. Qc3+ {[%clk 0:00:02]}  Qf6 {[%clk 0:00:18]} 38. Qxa5 {[%clk 0:00:01]}  h5 {[%clk 0:00:13]} 39. Qe1 {[%clk 0:00:01]}  Rd8 {[%clk 0:00:12]} 40. Qe3 {[%clk 0:00:01]}  Ra8 {[%clk 0:00:12]} 41. h4 {[%clk 0:00:01]}  Rxa2 {[%clk 0:00:11]} 42. b4 {[%clk 0:00:02]}  Ra8 {[%clk 0:00:11]} 43. b5 {[%clk 0:00:02]}  Rf8 {[%clk 0:00:11]} 44. Be2 {[%clk 0:00:01]}  Qd6 {[%clk 0:00:11]} 45. Bf3 {[%clk 0:00:02]}  Rf6 {[%clk 0:00:09]} 46. Bc6 {[%clk 0:00:02]}  Re6 {[%clk 0:00:09]} 47. Qc3+ {[%clk 0:00:02]}  Qe5 {[%clk 0:00:09]} 48. Qc1 {[%clk 0:00:01]}  Qe1 {[%clk 0:00:09]} 49. Qb2+ {[%clk 0:00:01]}  Qe5 {[%clk 0:00:09]} 50. Qc1 {[%clk 0:00:02]}  Kf6 {[%clk 0:00:09]} 51. Qh6 {[%clk 0:00:02]}  Qf5 {[%clk 0:00:08]} 52. Qf8+ {[%clk 0:00:02]}  Ke5 {[%clk 0:00:08]} 53. Qc5+ {[%clk 0:00:02]}  Kf6 {[%clk 0:00:06]} 54. Qf8+ {[%clk 0:00:03]}  Ke5 {[%clk 0:00:05]} 55. Qc5+ {[%clk 0:00:03]}  Kf6 {[%clk 0:00:05]} 56. Qf8+ {[%clk 0:00:03]} 1/2-1/2

[Event "December 5 Early 2023"]
[Site "https://www.chess.com"]
[Date "2023.12.05"]
[Round "6"]
[White "Slade, Theodore"]
[Black "Shubin, Daniel"]
[Result "1-0"]
[Board "143"]
[TimeControl "180+1"]
[WhiteFideId "426547"]
[BlackFideId "30936470"]
[WhiteElo "2516"]
[BlackElo "2360"]
[WhiteTeam "ENG"]
[BlackTeam "USA"]
[WhiteClock "0:00:19"]
[BlackClock "0:00:41"]

1. d4 {[%clk 0:02:56]}  d5 {[%clk 0:03:00]} 2. c4 {[%clk 0:02:56]}  e6 {[%clk 0:03:00]} 3. Nf3 {[%clk 0:02:56]}  Nf6 {[%clk 0:03:00]} 4. g3 {[%clk 0:02:57]}  Nbd7 {[%clk 0:03:00]} 5. Bg2 {[%clk 0:02:57]}  c6 {[%clk 0:03:00]} 6. O-O {[%clk 0:02:58]}  Be7 {[%clk 0:03:00]} 7. Qc2 {[%clk 0:02:58]}  O-O {[%clk 0:03:01]} 8. Nbd2 {[%clk 0:02:54]}  b6 {[%clk 0:03:00]} 9. e4 {[%clk 0:02:52]}  Nxe4 {[%clk 0:03:00]} 10. Nxe4 {[%clk 0:02:52]}  dxe4 {[%clk 0:03:01]} 11. Qxe4 {[%clk 0:02:53]}  Bb7 {[%clk 0:03:02]} 12. Rd1 {[%clk 0:02:42]}  Nf6 {[%clk 0:03:02]} 13. Qc2 {[%clk 0:02:37]}  Qc7 {[%clk 0:02:52]} 14. Bf4 {[%clk 0:02:35]}  Bd6 {[%clk 0:02:52]} 15. Bxd6 {[%clk 0:02:36]}  Qxd6 {[%clk 0:02:53]} 16. c5 {[%clk 0:02:32]}  Qc7 {[%clk 0:02:47]} 17. b4 {[%clk 0:02:23]}  Rad8 {[%clk 0:02:46]} 18. Ne5 {[%clk 0:02:18]}  Nd5 {[%clk 0:02:43]} 19. a3 {[%clk 0:02:15]}  f6 {[%clk 0:02:34]} 20. Nc4 {[%clk 0:02:14]}  Rfe8 {[%clk 0:02:10]} 21. Nd6 {[%clk 0:02:14]}  Rxd6 {[%clk 0:02:09]} 22. cxd6 {[%clk 0:02:14]}  Qxd6 {[%clk 0:02:10]} 23. Re1 {[%clk 0:02:12]}  b5 {[%clk 0:02:05]} 24. Re2 {[%clk 0:02:07]}  Nb6 {[%clk 0:02:05]} 25. Re4 {[%clk 0:01:52]}  c5 {[%clk 0:01:55]} 26. dxc5 {[%clk 0:01:44]}  Bxe4 {[%clk 0:01:55]} 27. Qxe4 {[%clk 0:01:32]}  Qd2 {[%clk 0:01:55]} 28. cxb6 {[%clk 0:01:31]}  axb6 {[%clk 0:01:56]} 29. Qc6 {[%clk 0:01:28]}  Re7 {[%clk 0:01:56]} 30. Qxb5 {[%clk 0:01:24]}  Qb2 {[%clk 0:01:55]} 31. Re1 {[%clk 0:01:21]}  Qxa3 {[%clk 0:01:53]} 32. Qxb6 {[%clk 0:01:21]}  Kf7 {[%clk 0:01:49]} 33. h4 {[%clk 0:01:16]}  Qc3 {[%clk 0:01:49]} 34. Re3 {[%clk 0:01:04]}  Qc1+ {[%clk 0:01:44]} 35. Kh2 {[%clk 0:01:04]}  Qb2 {[%clk 0:01:45]} 36. Rd3 {[%clk 0:00:35]}  Qc2 {[%clk 0:01:42]} 37. Rd8 {[%clk 0:00:33]}  h6 {[%clk 0:01:31]} 38. Bf3 {[%clk 0:00:32]}  e5 {[%clk 0:01:28]} 39. Bh5+ {[%clk 0:00:31]}  g6 {[%clk 0:01:26]} 40. Bf3 {[%clk 0:00:30]}  e4 {[%clk 0:01:27]} 41. Bg2 {[%clk 0:00:25]}  g5 {[%clk 0:01:21]} 42. hxg5 {[%clk 0:00:23]}  hxg5 {[%clk 0:01:21]} 43. Rh8 {[%clk 0:00:22]}  Kg7 {[%clk 0:01:17]} 44. Qd8 {[%clk 0:00:21]}  f5 {[%clk 0:00:53]} 45. Qf8+ {[%clk 0:00:21]}  Kg6 {[%clk 0:00:52]} 46. Rg8+ {[%clk 0:00:19]}  Kh7 {[%clk 0:00:50]} 47. Rh8+ {[%clk 0:00:18]}  Kg6 {[%clk 0:00:51]} 48. Qxe7 {[%clk 0:00:18]}  Qxf2 {[%clk 0:00:50]} 49. Rg8+ {[%clk 0:00:18]}  Kh6 {[%clk 0:00:49]} 50. Qxg5+ {[%clk 0:00:18]}  Kh7 {[%clk 0:00:41]} 51. Qg7# {[%clk 0:00:19]} 1-0

[Event "December 5 Early 2023"]
[Site "https://www.chess.com"]
[Date "2023.12.05"]
[Round "6"]
[White "Tharushi, T H D Niklesha"]
[Black "Kurmangaliyeva, Liya"]
[Result "0-1"]
[Board "148"]
[TimeControl "180+1"]
[WhiteFideId "9918264"]
[BlackFideId "13725831"]
[WhiteElo "2321"]
[BlackElo "2510"]
[WhiteTeam "SRI"]
[BlackTeam "KAZ"]
[WhiteClock "0:00:15"]
[BlackClock "0:00:20"]

1. e4 {[%clk 0:02:56]}  c5 {[%clk 0:02:58]} 2. Nf3 {[%clk 0:02:56]}  e6 {[%clk 0:02:57]} 3. d4 {[%clk 0:02:56]}  cxd4 {[%clk 0:02:57]} 4. Nxd4 {[%clk 0:02:57]}  a6 {[%clk 0:02:58]} 5. c4 {[%clk 0:02:56]}  Nf6 {[%clk 0:02:56]} 6. Nc3 {[%clk 0:02:56]}  Qc7 {[%clk 0:02:56]} 7. Be3 {[%clk 0:02:50]}  Bb4 {[%clk 0:02:51]} 8. Qd3 {[%clk 0:02:44]}  b6 {[%clk 0:02:41]} 9. f3 {[%clk 0:02:41]}  Bb7 {[%clk 0:02:41]} 10. a3 {[%clk 0:02:35]}  Bxc3+ {[%clk 0:02:31]} 11. Qxc3 {[%clk 0:02:36]}  Nc6 {[%clk 0:02:31]} 12. Be2 {[%clk 0:02:32]}  Rc8 {[%clk 0:02:21]} 13. Rc1 {[%clk 0:02:27]}  O-O {[%clk 0:02:19]} 14. g4 {[%clk 0:02:23]}  d6 {[%clk 0:01:59]} 15. h4 {[%clk 0:02:13]}  Nd7 {[%clk 0:01:42]} 16. h5 {[%clk 0:01:52]}  Rfe8 {[%clk 0:01:11]} 17. h6 {[%clk 0:01:46]}  Nxd4 {[%clk 0:01:00]} 18. Qxd4 {[%clk 0:01:39]}  e5 {[%clk 0:01:00]} 19. Qd2 {[%clk 0:01:37]}  g6 {[%clk 0:01:00]} 20. b4 {[%clk 0:01:17]}  Nf8 {[%clk 0:01:00]} 21. Bd3 {[%clk 0:01:06]}  Ne6 {[%clk 0:01:00]} 22. Qf2 {[%clk 0:01:06]}  b5 {[%clk 0:00:55]} 23. O-O {[%clk 0:01:01]}  bxc4 {[%clk 0:00:51]} 24. Bxc4 {[%clk 0:01:01]}  Qe7 {[%clk 0:00:49]} 25. Qh2 {[%clk 0:00:47]}  Red8 {[%clk 0:00:37]} 26. Qe2 {[%clk 0:00:28]}  Ra8 {[%clk 0:00:26]} 27. Rc2 {[%clk 0:00:26]}  Qh4 {[%clk 0:00:20]} 28. Qd1 {[%clk 0:00:15]}  Qf6 {[%clk 0:00:13]} 29. Rg2 {[%clk 0:00:13]}  Nf4 {[%clk 0:00:14]} 30. Bxf4 {[%clk 0:00:13]}  Qxf4 {[%clk 0:00:14]} 31. Qd2 {[%clk 0:00:13]}  Rac8 {[%clk 0:00:13]} 32. Qxf4 {[%clk 0:00:13]}  exf4 {[%clk 0:00:14]} 33. Bd3 {[%clk 0:00:13]}  Rc3 {[%clk 0:00:14]} 34. Be2 {[%clk 0:00:12]}  Rxa3 {[%clk 0:00:14]} 35. Rd1 {[%clk 0:00:13]}  d5 {[%clk 0:00:13]} 36. exd5 {[%clk 0:00:10]}  Rxd5 {[%clk 0:00:14]} 37. Rxd5 {[%clk 0:00:10]}  Bxd5 {[%clk 0:00:14]} 38. b5 {[%clk 0:00:11]}  axb5 {[%clk 0:00:13]} 39. Bxb5 {[%clk 0:00:12]}  Kf8 {[%clk 0:00:14]} 40. Rf2 {[%clk 0:00:11]}  Ke7 {[%clk 0:00:13]} 41. Be2 {[%clk 0:00:11]}  Re3 {[%clk 0:00:13]} 42. Kg2 {[%clk 0:00:11]}  Kf6 {[%clk 0:00:13]} 43. Bd1 {[%clk 0:00:10]}  Kg5 {[%clk 0:00:14]} 44. Be2 {[%clk 0:00:10]}  Kxh6 {[%clk 0:00:14]} 45. Bd1 {[%clk 0:00:10]}  Kg5 {[%clk 0:00:14]} 46. Rd2 {[%clk 0:00:11]}  Be6 {[%clk 0:00:15]} 47. Rc2 {[%clk 0:00:11]}  Kh4 {[%clk 0:00:15]} 48. Rc5 {[%clk 0:00:12]}  h6 {[%clk 0:00:15]} 49. Rc2 {[%clk 0:00:12]}  Re1 {[%clk 0:00:15]} 50. Rf2 {[%clk 0:00:12]}  Rxd1 {[%clk 0:00:16]} 51. Kh2 {[%clk 0:00:13]}  Kg5 {[%clk 0:00:16]} 52. Rg2 {[%clk 0:00:13]}  Rd3 {[%clk 0:00:16]} 53. Rf2 {[%clk 0:00:14]}  Re3 {[%clk 0:00:17]} 54. Kg2 {[%clk 0:00:15]}  Bd5 {[%clk 0:00:18]} 55. Rf1 {[%clk 0:00:15]}  h5 {[%clk 0:00:18]} 56. gxh5 {[%clk 0:00:14]}  Kxh5 {[%clk 0:00:19]} 57. Rh1+ {[%clk 0:00:14]}  Kg5 {[%clk 0:00:19]} 58. Rf1 {[%clk 0:00:15]}  Bxf3+ {[%clk 0:00:20]} 59. Kg1 {[%clk 0:00:15]}  Bg4 {[%clk 0:00:20]} 60. Rf2 {[%clk 0:00:15]}  Re2 {[%clk 0:00:20]} 61. Kh2 {[%clk 0:00:15]}  Rxf2+ {[%clk 0:00:20]} 0-1

[Event "December 5 Early 2023"]
[Site "https://www.chess.com"]
[Date "2023.12.05"]
[Round "6"]
[White "Shinkarev, M"]
[Black "Antonio, Jorge Carlos"]
[Result "0-1"]
[Board "149"]
[TimeControl "180+1"]
[WhiteFideId "4145348"]
[BlackFideId "113190"]
[WhiteElo "2506"]
[BlackElo "2306"]
[WhiteTeam "RUS"]
[BlackTeam "ARG"]
[WhiteClock "0:00:41"]
[BlackClock "0:00:35"]

1. c4 {[%clk 0:03:00]}  e5 {[%clk 0:02:59]} 2. g3 {[%clk 0:03:00]}  c6 {[%clk 0:02:57]} 3. d4 {[%clk 0:03:00]}  e4 {[%clk 0:02:54]} 4. d5 {[%clk 0:02:59]}  Bb4+ {[%clk 0:02:50]} 5. Bd2 {[%clk 0:02:59]}  Qe7 {[%clk 0:02:46]} 6. Nc3 {[%clk 0:02:57]}  f5 {[%clk 0:02:42]} 7. a3 {[%clk 0:02:54]}  Bxc3 {[%clk 0:02:38]} 8. Bxc3 {[%clk 0:02:54]}  d6 {[%clk 0:02:37]} 9. e3 {[%clk 0:02:48]}  c5 {[%clk 0:02:34]} 10. Ne2 {[%clk 0:02:32]}  Nf6 {[%clk 0:02:33]} 11. Nf4 {[%clk 0:02:31]}  Nbd7 {[%clk 0:02:29]} 12. Bg2 {[%clk 0:02:28]}  Ne5 {[%clk 0:02:27]} 13. O-O {[%clk 0:02:28]}  O-O {[%clk 0:02:23]} 14. b4 {[%clk 0:02:24]}  b6 {[%clk 0:02:16]} 15. f3 {[%clk 0:02:16]}  exf3 {[%clk 0:02:12]} 16. Bxf3 {[%clk 0:02:17]}  Nxc4 {[%clk 0:02:08]} 17. Re1 {[%clk 0:02:12]}  Ne5 {[%clk 0:02:04]} 18. Bg2 {[%clk 0:02:10]}  c4 {[%clk 0:02:02]} 19. b5 {[%clk 0:02:04]}  Bd7 {[%clk 0:01:58]} 20. a4 {[%clk 0:02:04]}  Ne4 {[%clk 0:01:54]} 21. Bd4 {[%clk 0:01:54]}  Rac8 {[%clk 0:01:50]} 22. Qc2 {[%clk 0:01:53]}  g5 {[%clk 0:01:46]} 23. Ne6 {[%clk 0:01:43]}  Bxe6 {[%clk 0:01:45]} 24. dxe6 {[%clk 0:01:44]}  Qxe6 {[%clk 0:01:39]} 25. Rad1 {[%clk 0:01:28]}  Nd3 {[%clk 0:01:38]} 26. Rxd3 {[%clk 0:01:23]}  cxd3 {[%clk 0:01:37]} 27. Qxd3 {[%clk 0:01:24]}  d5 {[%clk 0:01:23]} 28. Ba1 {[%clk 0:01:23]}  Rc4 {[%clk 0:01:17]} 29. Qe2 {[%clk 0:01:11]}  Rfc8 {[%clk 0:01:14]} 30. Qb2 {[%clk 0:01:03]}  Rc3 {[%clk 0:01:09]} 31. Rd1 {[%clk 0:00:57]}  Kf7 {[%clk 0:01:05]} 32. Qe2 {[%clk 0:00:54]}  Rc2 {[%clk 0:00:57]} 33. Qd3 {[%clk 0:00:52]}  R8c4 {[%clk 0:00:47]} 34. Rf1 {[%clk 0:00:49]}  Rd2 {[%clk 0:00:43]} 35. Qb1 {[%clk 0:00:43]}  Rcc2 {[%clk 0:00:39]} 36. Bh3 {[%clk 0:00:42]}  g4 {[%clk 0:00:37]} 37. Bxg4 {[%clk 0:00:41]}  Rg2+ {[%clk 0:00:35]} 38. Kh1 {[%clk 0:00:40]}  Rxh2+ {[%clk 0:00:35]} 39. Kg1 {[%clk 0:00:41]}  Rcg2# {[%clk 0:00:35]} 0-1

[Event "December 5 Early 2023"]
[Site "https://www.chess.com"]
[Date "2023.12.05"]
[Round "6"]
[White "Rodriguez Fontecha, Marcos"]
[Black "Sarkar, Justin"]
[Result "1-0"]
[Board "150"]
[TimeControl "180+1"]
[WhiteFideId "2256576"]
[BlackFideId "2010011"]
[WhiteElo "2504"]
[BlackElo "2298"]
[WhiteTeam "ESP"]
[BlackTeam "USA"]
[WhiteClock "0:00:17"]
[BlackClock "0:00:00"]

1. d4 {[%clk 0:03:00]}  d5 {[%clk 0:02:48]} 2. Bf4 {[%clk 0:02:59]}  Nc6 {[%clk 0:02:27]} 3. Nf3 {[%clk 0:02:58]}  Bg4 {[%clk 0:02:21]} 4. g3 {[%clk 0:02:58]}  Bxf3 {[%clk 0:02:17]} 5. exf3 {[%clk 0:02:59]}  e6 {[%clk 0:02:15]} 6. Bg2 {[%clk 0:02:58]}  Bd6 {[%clk 0:02:07]} 7. Be3 {[%clk 0:02:58]}  Nge7 {[%clk 0:02:07]} 8. O-O {[%clk 0:02:58]}  O-O {[%clk 0:02:01]} 9. c3 {[%clk 0:02:58]}  e5 {[%clk 0:01:54]} 10. Nd2 {[%clk 0:02:59]}  exd4 {[%clk 0:01:51]} 11. Bxd4 {[%clk 0:02:58]}  Nxd4 {[%clk 0:01:47]} 12. cxd4 {[%clk 0:02:59]}  Nf5 {[%clk 0:01:39]} 13. Qb3 {[%clk 0:02:54]}  Nxd4 {[%clk 0:01:14]} 14. Qxd5 {[%clk 0:02:53]}  Bxg3 {[%clk 0:00:48]} 15. Qxb7 {[%clk 0:01:43]}  Ne2+ {[%clk 0:00:41]} 16. Kh1 {[%clk 0:01:43]}  Bxh2 {[%clk 0:00:25]} 17. f4 {[%clk 0:00:59]}  Bxf4 {[%clk 0:00:17]} 18. Nf3 {[%clk 0:00:58]}  Qf6 {[%clk 0:00:12]} 19. Bh3 {[%clk 0:00:56]}  Nd4 {[%clk 0:00:10]} 20. Nxd4 {[%clk 0:00:54]}  Qxd4 {[%clk 0:00:10]} 21. Rae1 {[%clk 0:00:53]}  Rab8 {[%clk 0:00:09]} 22. Qe4 {[%clk 0:00:52]}  Qf6 {[%clk 0:00:08]} 23. b3 {[%clk 0:00:51]}  Rb5 {[%clk 0:00:07]} 24. Qf3 {[%clk 0:00:45]}  g6 {[%clk 0:00:05]} 25. Re4 {[%clk 0:00:45]}  Bg5 {[%clk 0:00:04]} 26. Qe2 {[%clk 0:00:45]}  Qg7 {[%clk 0:00:03]} 27. Qxb5 {[%clk 0:00:44]}  f5 {[%clk 0:00:03]} 28. Re8 {[%clk 0:00:38]}  Qh6 {[%clk 0:00:03]} 29. Qd5+ {[%clk 0:00:37]}  Kg7 {[%clk 0:00:02]} 30. Qd7+ {[%clk 0:00:18]}  Kh8 {[%clk 0:00:02]} 31. Rxf8+ {[%clk 0:00:16]}  Qxf8 {[%clk 0:00:00]} 32. Re1 {[%clk 0:00:17]} 1-0

[Event "December 5 Early 2023"]
[Site "https://www.chess.com"]
[Date "2023.12.05"]
[Round "6"]
[White "Alikhanov, Felix"]
[Black "Llari, Marc"]
[Result "1-0"]
[Board "152"]
[TimeControl "180+1"]
[WhiteFideId "4157427"]
[BlackFideId "651044269"]
[WhiteElo "2496"]
[BlackElo "2295"]
[WhiteTeam "RUS"]
[BlackTeam "FRA"]
[WhiteClock "0:01:15"]
[BlackClock "0:01:15"]

1. e4 {[%clk 0:02:51]}  e6 {[%clk 0:02:56]} 2. d4 {[%clk 0:02:52]}  d5 {[%clk 0:02:56]} 3. Nd2 {[%clk 0:02:51]}  c5 {[%clk 0:02:53]} 4. Ngf3 {[%clk 0:02:51]}  Nc6 {[%clk 0:02:51]} 5. exd5 {[%clk 0:02:52]}  exd5 {[%clk 0:02:52]} 6. Bb5 {[%clk 0:02:52]}  a6 {[%clk 0:02:47]} 7. Bxc6+ {[%clk 0:02:51]}  bxc6 {[%clk 0:02:47]} 8. O-O {[%clk 0:02:51]}  Bd6 {[%clk 0:02:47]} 9. dxc5 {[%clk 0:02:49]}  Bxc5 {[%clk 0:02:47]} 10. Nb3 {[%clk 0:02:49]}  Bd6 {[%clk 0:02:45]} 11. Nfd4 {[%clk 0:02:45]}  Ne7 {[%clk 0:02:43]} 12. Re1 {[%clk 0:02:44]}  O-O {[%clk 0:02:41]} 13. Bg5 {[%clk 0:02:44]}  f6 {[%clk 0:02:37]} 14. Bh4 {[%clk 0:02:44]}  Qc7 {[%clk 0:02:36]} 15. Bg3 {[%clk 0:02:42]}  Nf5 {[%clk 0:02:34]} 16. Nxf5 {[%clk 0:02:41]}  Bxf5 {[%clk 0:02:35]} 17. Nd4 {[%clk 0:02:37]}  Bd7 {[%clk 0:02:22]} 18. Re7 {[%clk 0:02:36]}  Bxg3 {[%clk 0:02:13]} 19. hxg3 {[%clk 0:02:32]}  Qd6 {[%clk 0:02:12]} 20. Qe2 {[%clk 0:02:27]}  Rae8 {[%clk 0:02:09]} 21. Re1 {[%clk 0:02:27]}  c5 {[%clk 0:02:07]} 22. Nf5 {[%clk 0:02:11]}  Rxe7 {[%clk 0:02:00]} 23. Nxd6 {[%clk 0:02:02]}  Rxe2 {[%clk 0:01:58]} 24. Rxe2 {[%clk 0:02:03]}  Rd8 {[%clk 0:01:46]} 25. Nb7 {[%clk 0:01:53]}  Rc8 {[%clk 0:01:45]} 26. Re7 {[%clk 0:01:51]}  Bb5 {[%clk 0:01:38]} 27. Nd6 {[%clk 0:01:39]}  Rd8 {[%clk 0:01:36]} 28. Nf5 {[%clk 0:01:36]}  g6 {[%clk 0:01:31]} 29. Nh6+ {[%clk 0:01:34]}  Kf8 {[%clk 0:01:31]} 30. Rxh7 {[%clk 0:01:33]}  d4 {[%clk 0:01:31]} 31. Ng4 {[%clk 0:01:23]}  c4 {[%clk 0:01:29]} 32. Nxf6 {[%clk 0:01:21]}  d3 {[%clk 0:01:29]} 33. cxd3 {[%clk 0:01:20]}  cxd3 {[%clk 0:01:30]} 34. Rh8+ {[%clk 0:01:20]}  Ke7 {[%clk 0:01:29]} 35. Rxd8 {[%clk 0:01:21]}  Kxd8 {[%clk 0:01:29]} 36. Ne4 {[%clk 0:01:22]}  Ke7 {[%clk 0:01:27]} 37. f3 {[%clk 0:01:21]}  Ke6 {[%clk 0:01:23]} 38. Kf2 {[%clk 0:01:20]}  Kd5 {[%clk 0:01:23]} 39. Ke3 {[%clk 0:01:19]}  Kc4 {[%clk 0:01:22]} 40. Nd6+ {[%clk 0:01:14]}  Kb4 {[%clk 0:01:21]} 41. Nxb5 {[%clk 0:01:14]}  axb5 {[%clk 0:01:15]} 42. Kxd3 {[%clk 0:01:15]} 1-0

[Event "December 5 Early 2023"]
[Site "https://www.chess.com"]
[Date "2023.12.05"]
[Round "6"]
[White "Kopczynski, Michal"]
[Black "Hon, Eric"]
[Result "1-0"]
[Board "153"]
[TimeControl "180+1"]
[WhiteFideId "1124200"]
[BlackFideId "2097117"]
[WhiteElo "2492"]
[BlackElo "2268"]
[WhiteTeam "POL"]
[BlackTeam "USA"]
[WhiteClock "0:01:43"]
[BlackClock "0:00:27"]

1. e4 {[%clk 0:03:00]}  c5 {[%clk 0:02:57]} 2. d4 {[%clk 0:03:01]}  cxd4 {[%clk 0:02:55]} 3. c3 {[%clk 0:03:01]}  dxc3 {[%clk 0:02:54]} 4. Nxc3 {[%clk 0:03:02]}  Nc6 {[%clk 0:02:54]} 5. f4 {[%clk 0:03:03]}  e6 {[%clk 0:02:44]} 6. Nf3 {[%clk 0:03:03]}  Nge7 {[%clk 0:02:44]} 7. Bd3 {[%clk 0:03:04]}  Ng6 {[%clk 0:02:41]} 8. O-O {[%clk 0:03:03]}  Bc5+ {[%clk 0:02:31]} 9. Kh1 {[%clk 0:03:03]}  O-O {[%clk 0:02:32]} 10. Qe1 {[%clk 0:02:59]}  d6 {[%clk 0:02:21]} 11. Qg3 {[%clk 0:02:56]}  f5 {[%clk 0:02:03]} 12. exf5 {[%clk 0:02:51]}  exf5 {[%clk 0:02:03]} 13. Bc4+ {[%clk 0:02:50]}  Kh8 {[%clk 0:02:02]} 14. Ng5 {[%clk 0:02:51]}  Qe8 {[%clk 0:01:13]} 15. Bd2 {[%clk 0:02:50]}  Bd7 {[%clk 0:01:08]} 16. Rae1 {[%clk 0:02:51]}  Nce7 {[%clk 0:01:08]} 17. Nd5 {[%clk 0:02:44]}  Bc6 {[%clk 0:01:00]} 18. Nc7 {[%clk 0:02:30]}  Qd7 {[%clk 0:00:58]} 19. Nxa8 {[%clk 0:02:28]}  d5 {[%clk 0:00:58]} 20. Bb3 {[%clk 0:01:53]}  Rxa8 {[%clk 0:00:55]} 21. Bc3 {[%clk 0:01:52]}  Bb6 {[%clk 0:00:35]} 22. Qh3 {[%clk 0:01:44]}  Kg8 {[%clk 0:00:27]} 23. Qxh7+ {[%clk 0:01:43]} 1-0